Cogmind - Beta 15 @@@ ROGUE MODE // 2025.09.16 @ 17:58:04 Player: c4-BRK Result: Destroyed by G-34 Mercenary with Small Laser Performance ------------- Evolutions (0) 0 Regions Visited (3) 600 Robots Destroyed (11) 55 Value Destroyed (180) 180 Prototype IDs (2) 40 Alien Tech Used (0) 0 Bonus (0) 0 TOTAL SCORE: 875 Bonus ------- None Cogmind --------- Core Integrity 0/250 Matter 300/300 Energy 100/100 System Corruption 0% Temperature Cool (6) Movement Rolling (100) Location -10/Subcaves Parts ------- > --- POWER (1) -------- (None) > --- PROPULSION (2) --- Compact Wheel > --- UTILITY (2) ------ Small Storage Unit Terrain Scanner > --- WEAPON (2) ------- (None) > --- INVENTORY (8) ---- Wheel Improved Heat Sink Experimental Sensor Array Peak State ------------ > --- POWER ------------ Ion Engine > --- PROPULSION ------- Light Treads Compact Wheel > --- UTILITY ---------- Small Storage Unit Terrain Scanner > --- WEAPON ----------- Medium Laser Medium Laser > --- INVENTORY -------- Compact Wheel [Rating: 7] Favorites ----------- Power Ion Engine Engine Ion Engine Propulsion Compact Wheel Treads Light Treads Wheel Compact Wheel Utility Small Storage Unit Device Terrain Scanner Storage Small Storage Unit Weapon Medium Laser Energy Gun Medium Laser Special Weapon Mining Laser Build | -11 -10 -10 -10 ------- Run | Yrd Mat Min Sub Slots Evolved . | . . . . Power . | . . . . Propulsion . | . . . . Utility . | . . . . Weapon . | . . . . Parts Attached 9 | 6 1 . 2 Power 1 | 1 . . . Engine 1 | 1 . . . Core . | . . . . Reactor . | . . . . Propulsion 3 | 2 . . 1 Treads 1 | 1 . . . Leg . | . . . . Wheel 2 | 1 . . 1 Hover . | . . . . Flight . | . . . . Utility 2 | 1 1 . . Device 1 | . 1 . . Storage 1 | 1 . . . Processor . | . . . . Hackware . | . . . . Protection . | . . . . Artifact . | . . . . Weapon 3 | 2 . . 1 Energy Gun 2 | 2 . . . Energy Cannon . | . . . . Ballistic Gun . | . . . . Ballistic Cannon . | . . . . Launcher . | . . . . Special Weapon 1 | . . . 1 Impact Weapon . | . . . . Slashing Weapon . | . . . . Piercing Weapon . | . . . . Special Melee Weapon . | . . . . Unidentified Prototypes . | . . . . Parts Lost 6 | . . 2 4 Power 1 | . . . 1 Propulsion 2 | . . . 2 Utility . | . . . . Weapon 3 | . . 2 1 Highest Loss Streak 3 | . . 2 3 To Critical Strikes . | . . . . Average Backups 2 | 1 1 3 2 Power . | . . . . Propulsion . | . 1 1 . Utility . | . . 1 2 Weapon . | . . 1 . Tool/Special . | . . . . Unused Backups 2 | . . . 2 Power . | . . . . Propulsion . | . . . . Utility 2 | . . . 2 Weapon . | . . . . Tool/Special . | . . . . Average Slot Usage (%) 79 | . 85 73 75 Engine 13 | . 14 14 11 Treads 13 | . 14 14 11 Wheel 14 | . 14 14 15 Device 8 | . . 14 14 Storage 14 | . 14 14 14 Energy Gun 12 | . 28 2 . Special Weapon 2 | . . . 7 Peak Build Rating 7 | 6 7 7 7 Average Rating 5 | 4 6 5 6 On Entrance 4 | . 6 7 6 Naked Turns . | . . . . Heaviest Build 15 | 14 15 15 12 Greatest Support 32 | 20 16 16 32 Greatest Overweight (x) . | . . . . Average Overweight (x) . | . . . . Largest Inventory Capacity 8 | 8 8 8 8 Average Capacity 7 | 7 8 8 8 Most Carried 5 | 5 2 4 3 Average Carried 2 | 1 1 3 2 Final Capacity 8 | 8 8 8 8 Final Carried 4 | 1 2 4 3 Class Distribution -------------------- 100% | Mutant Dominant Class ---------------- Mutant | -10/Materials Mutant | -10/Mines Mutant | -10/Subcaves Resources | -11 -10 -10 -10 ----------- Run | Yrd Mat Min Sub Matter Collected 265 | 209 51 . 5 Remotely . | . . . . Salvage Created 262 | . 262 . . Parts 21 | . 21 . . Haulers Intercepted 1 | . 1 . . Recyclers Shooed 1 | . 1 . . Parts Field Recycled . | . . . . Retrieved Matter . | . . . . Parts Self-Destructed . | . . . . Prevented . | . . . . Kills | -11 -10 -10 -10 ------- Run | Yrd Mat Min Sub Combat Hostiles Destroyed 9 | . 9 . . Guns 9 | . 9 . . Classes Destroyed 4 | . 4 . . Hauler 1 | . 1 . . Watcher 1 | . 1 . . Swarmer 6 | . 6 . . Grunt 3 | . 3 . . Best Kill Streak 3 | . 3 . . Combat Bots Only 3 | . 3 . . Max Kills in Single Turn 1 | . 1 . . Gunslinging . | . . . . Exploded . | . . . . Melee . | . . . . Uniques/NPCs Destroyed . | . . . . Combat | -11 -10 -10 -10 -------- Run | Yrd Mat Min Sub Hostile Shots Fired 69 | . 36 7 26 Missed 20 | . 9 2 9 Hits 49 | . 27 5 17 Projectile 49 | . 27 5 17 AOE 1 | . . . 1 Damage Taken 790 | . 248 64 478 Core 255 | . 40 . 215 Absorbed by Shields . | . . . . Core Remaining (%) 100 | 100 . . . Volleys Fired 38 | . 36 2 . Largest 2 | . 2 1 . Hottest 100 | . 100 50 . Shots Fired 74 | . 72 2 . Gun 74 | . 72 2 . Cannon . | . . . . Launcher . | . . . . Special . | . . . . Kinetic . | . . . . Thermal 74 | . 72 2 . Explosive . | . . . . Electromagnetic . | . . . . Robot Hit Streak 8 | . 8 . . Robot Miss Streak 6 | . 6 2 . Penetration Max . | . . . . Secondary Targets 2 | . 2 . . Max Gunslinging Chain 1 | . 1 . . Shots Hit Robots 35 | . 35 . . Core Hits 15 | . 15 . . Critical Kills . | . . . . Critical Parts Destroyed . | . . . . Critical Strikes 3 | . 3 . . Burn 3 | . 3 . . Melee Attacks . | . . . . Impact . | . . . . Slashing . | . . . . Piercing . | . . . . Sneak Attacks . | . . . . Combat Hostiles . | . . . . Follow-up Attacks . | . . . . Damage Inflicted 479 | . 479 . . Guns 476 | . 476 . . Cannons . | . . . . Explosions . | . . . . Melee . | . . . . Ramming 3 | . 3 . . Kinetic . | . . . . Thermal 476 | . 476 . . Explosive . | . . . . Electromagnetic . | . . . . Impact . | . . . . Slashing . | . . . . Piercing . | . . . . Highest Corruption . | . . . . Average Corruption . | . . . . Corruption Purged . | . . . . Corruption Blocked . | . . . . Overload Shots . | . . . . Overflow Damage . | . . . . Projectiles . | . . . . Explosions . | . . . . Melee . | . . . . Knockbacks . | . . . . Impact . | . . . . Kinetic . | . . . . Secondary . | . . . . Self-Inflicted Damage 1 | . 1 . . Shots . | . . . . Rammed 2 | . 1 1 . Targets Rammed 2 | . 1 1 . Kicked . | . . . . Crushed . | . . . . Highest Temperature 453 | . 453 50 . Average Temperature 137 | . 141 30 . Received Heat Transfer 129 | . 60 36 33 Effects 3 | . 3 . . Shutdowns 1 | . 1 . . Energy Bleed 1 | . 1 . . Damage (minor) 1 | . 1 . . Siege Activations . | . . . . Martial Activations . | . . . . Shielding Activations . | . . . . Robots Disrupted . | . . . . Combat Hostiles . | . . . . Robots Corrupted . | . . . . Combat Hostiles . | . . . . Parts Fried . | . . . . Impact Corruptions . | . . . . Robots Melted . | . . . . Combat Hostiles . | . . . . Parts Melted 4 | . 4 . . Heat Transferred 1628 | . 1628 . . Parts Sabotaged . | . . . . Parts Stolen . | . . . . Parts Stripped . | . . . . Power Chain Reactions . | . . . . Alert | -11 -10 -10 -10 ------- Run | Yrd Mat Min Sub Maximum Alert Level . | . . . . Low Security (%) 100 | 100 100 100 . Level 1 . | . . . . Level 2 . | . . . . Level 3 . | . . . . Level 4 . | . . . . Level 5 . | . . . . High Security . | . . . . Max Security . | . . . . Peak Influence 196 | . 196 62 . Initial 62 | . . 62 . Average 82 | . 145 17 . Influence Increases 345 | . 315 30 . Destroy 0b10 Robot/C 180 | . 180 . . Destroy 0b10 Robot/NC 10 | . 10 . . Destroy Leader 44 | . 44 . . Successful Hack 5 | . 5 . . Destroy Structure 1 | . 1 . . Lose Combat Pursuer 105 | . 75 30 . Influence Decreases 345 | . 155 190 . Entered New Map 98 | . . 98 . Time Decay 227 | . 155 72 . Lost Part 20 | . . 20 . Squads Dispatched 2 | . 2 . . Investigation 1 | . 1 . . Extermination . | . . . . Reinforcement 1 | . 1 . . Assault . | . . . . Garrison . | . . . . Intercept . | . . . . Searches Triggered . | . . . . Construction Impeded . | . . . . Haulers Reinforced . | . . . . Active Scanning Responses . | . . . . Cargo Convoy Interrupts . | . . . . Stealth | -11 -10 -10 -10 --------- Run | Yrd Mat Min Sub Distress Signals 1 | . 1 . . Communications Jammed . | . . . . Distress Signals . | . . . . Times Spotted 29 | . 20 2 7 Peak Tracking Total 6 | . 6 2 6 Tactical Retreats 5 | . 3 1 1 Traps | -11 -10 -10 -10 ------- Run | Yrd Mat Min Sub Traps Triggered 2 | . . . 2 Indirectly . | . . . . Trap Hack Attempts . | . . . . Triggered . | . . . . Disarmed . | . . . . Reprogrammed . | . . . . Reused . | . . . . Traps Extracted . | . . . . Installed . | . . . . Triggered . | . . . . Machines | -11 -10 -10 -10 ---------- Run | Yrd Mat Min Sub Machines Disabled . | . . . . Max in Single Turn . | . . . . Machines Repaired . | . . . . Machines Dismantled . | . . . . Machines Sabotaged . | . . . . Overloaded Fab Kills . | . . . . Hacking | -11 -10 -10 -10 --------- Run | Yrd Mat Min Sub Machines Accessed 4 | . 4 . . Terminals 4 | . 4 . . Fabricators . | . . . . Repair Stations . | . . . . Recycling Units . | . . . . Scanalyzers . | . . . . Garrison Access . | . . . . Total Hacks 11 | . 11 . . Successful 2 | . 2 . . Failed 9 | . 9 . . Catastrophic 1 | . 1 . . Database Lockouts . | . . . . Manual . | . . . . Terminals 11 | . 11 . . Fabricators . | . . . . Repair Stations . | . . . . Recycling Units . | . . . . Scanalyzers . | . . . . Garrison Access . | . . . . Terminal Hacks 2 | . 2 . . Prototype ID Bank 1 | . 1 . . Investigation Status 1 | . 1 . . Fabricator Hacks . | . . . . Repair Station Hacks . | . . . . Recycling Unit Hacks . | . . . . Scanalyzer . | . . . . Garrison Access Hacks . | . . . . Unauthorized Hacks . | . . . . Terminals . | . . . . Fabricators . | . . . . Repair Stations . | . . . . Recycling Units . | . . . . Scanalyzers . | . . . . Garrison Access . | . . . . Data Cores Recovered . | . . . . Used . | . . . . Hacking Detections 3 | . 3 . . Full Trace Events 1 | . 1 . . Feedback Events . | . . . . Feedback Blocked . | . . . . Robot Schematics Acquired . | . . . . Robots Built . | . . . . Authchips . | . . . . Time . | . . . . Total Robot Build Rating . | . . . . Part Schematics Acquired . | . . . . Parts Built . | . . . . Authchips . | . . . . Time . | . . . . Total Part Build Rating . | . . . . Parts Repaired . | . . . . Time . | . . . . Parts Recycled . | . . . . Recycled Matter . | . . . . Retrieved Matter . | . . . . Retrieved Components . | . . . . Parts Scanalyzed . | . . . . Part Schematics Acquired . | . . . . Parts Damaged . | . . . . Bothacking | -11 -10 -10 -10 ------------ Run | Yrd Mat Min Sub Used RIF Installer . | . . . . Robots Hacked . | . . . . Non-combat . | . . . . Combat . | . . . . Robot Hacks Applied . | . . . . Relay Couplers Released . | . . . . Fabnet Peak Effective % . | . . . . Robots Rewired . | . . . . Allies Hacked . | . . . . Hacks Repelled . | . . . . Allies | -11 -10 -10 -10 -------- Run | Yrd Mat Min Sub Total Allies . | . . . . Largest Group . | . . . . Highest-Rated Group . | . . . . Highest-Rated Ally . | . . . . Total Orders . | . . . . Ally Attacks . | . . . . Total Damage . | . . . . Kills . | . . . . Allies Corrupted . | . . . . Allies Melted . | . . . . Intel | -11 -10 -10 -10 ------- Run | Yrd Mat Min Sub Active Infowar (turns) 489 | . 16 246 227 Terrain 489 | . 16 246 227 Robot Analysis Total . | . . . . Derelict Logs Recovered 1 | . . 1 . Drone Launches . | . . . . Drone Recoveries . | . . . . Exploration | -11 -10 -10 -10 ------------- Run | Yrd Mat Min Sub Turns Passed 876 | 66 337 246 227 Spaces Moved 596 | 62 173 225 136 Core 17 | 17 . . . Treads 1 | 1 . . . Legs . | . . . . Wheels 578 | 44 173 225 136 Hover . | . . . . Flight . | . . . . Fastest Speed 50 | 50 100 100 100 Average Speed 98 | 87 100 100 100 Slowest Speed 160 | 160 100 100 100 Overloaded Moves . | . . . . Propulsion Burnouts . | . . . . Robots Hopped . | . . . . Potential Cave-ins . | . . . . Cave-ins Triggered . | . . . . Exploration Rate (%) 31 | 4 42 60 19 Regions Visited 3 Branch Regions 2 Pre-discovered Areas . | . . . . Known Exits Taken . | . . . . Unknown Exits Taken 3 | 1 1 1 . Scrap Searched 1 | . . 1 . Spaces Dug . | . . . . Terrain Destroyed . | . . . . Melee . | . . . . Projectile . | . . . . AOE . | . . . . Terrain Rammed . | . . . . Walls Destroyed . | . . . . Machines Disabled . | . . . . Actions | -11 -10 -10 -10 --------- Run | Yrd Mat Min Sub Total 808 | 72 265 244 227 Wait 156 | . 53 15 88 Move 593 | 61 172 224 136 Hop . | . . . . Pick Up 10 | 5 2 2 1 Fast Attach 2 | 2 . . . Attach 7 | 4 1 . 2 Detach . | . . . . Swap . | . . . . Drop . | . . . . Fire 38 | . 36 2 . Melee . | . . . . Ram 2 | . 1 1 . Kick . | . . . . Crush . | . . . . Escape Stasis . | . . . . Rewire . | . . . . Trap . | . . . . Miscellaneous . | . . . . Route ------- -11/Scrapyard -10/Materials -10/Mines (discovered 3 exits: [*Mat x2] / [*Sub]) -10/Subcaves History --------- Turn | Location | Event 15 | -11/Scrapyard | Discovered new exit (range 16) 67 | -11/Scrapyard | Entered Materials 315 | -10/Materials | Build established: Mutant 358 | -10/Materials | Discovered new exit (range 9) 404 | -10/Materials | Entered Mines 416 | -10/Mines | Met a Derelict bent on vengeance 447 | -10/Mines | Found a damaged Exp. Sensor Array with a note attached 449 | -10/Mines | Found Prototype Device 490 | -10/Mines | Discovered new exit (range 7) 512 | -10/Mines | Discovered new exit (range 8) 533 | -10/Mines | Learned 2 Materials zone layouts 640 | -10/Mines | Discovered new exit (range 10) 650 | -10/Mines | Entered Subcaves 832 | -10/Subcaves | Core integrity fell below 50% 851 | -10/Subcaves | Core integrity fell below 20% 877 | -10/Subcaves | Destroyed by G-34 Mercenary with Small Laser Last Messages --------------- K-01 Serf collects debris. TH-TL4(g): "UNAWARE KILLED MY BEST FRIEND! VENGEANCE!" TH-TL4(g): "TASTE MY VENGEANCE!" K-01 Serf collects debris. EXIT=FOUND LOCATION=UNKNOWN AMBIENT_HEAT=-10 GOAL=ESCAPE Mining Laser destroyed. Triggered Shrapnel Trap. An expanding cloud of shrapnel blasts out in all directions. Broken Ion Engine destroyed. Lgt. Treads destroyed. Triggered Piercing Trap. Spikes shoot up from the floor. Com. Wheel destroyed. Acquired 5 matter. Acquired Wheel. Map ----- +----------------------------------------------------+ | ????????????????????????????????????????????# " "" | | ????????????????????????????????????????? # | | ???????????????????????????????????????# ? | | ???????????????????????????????????????# ###? | | ???????????????????????????????????????# ???? | | ???????????????????????????????????????## ???? | | ????????????????????????????????????????# ????? | | ????????????????????????????????????????## ????? | | ?????????????????????????????????????????## ???### | | ?????????????????????????###??????????????##??? # | | ????????????????????????## ??######???#????? | | ????????????????????????# ??# ##???????? | | ????????????????????????# ?# #???###? | | ?????????????????????????# ## #???# ## #? | | ??????????????????????????# ##### #?? | | ????????????????#?????????# ## #?? | | ???????????????## ???##????# #?? | | ??????????????## ?## ??#????## ## ###? | | ??????????????? ## ####??### #?????? | | ???????????????? # ### # R ##????? | | ???????????????? # R ## ##???? | | ??????????? ?????# # #### #???? | | ??????????? ### ### ##??## ###### | | ??????????# ### #????# ### | | ?????????? # #??## # | | ?????????? g @ %| # #??# # | | ????????????? #### = ##??# # | | ????????????????????### # #### #???# | | ??????????????????????# # ##??## #??## | | ??????????????????????## #????# #???## | | ??????????????????????? #????# #????## # | | ??????????????????????## #????# ##?????# ### | | ???????????????????????## ???? ##??????# ###?? | | ????????????????????????# # ???? #????????####???# | | ????????????????????????##?#????#?#???????????#?# | | ????????????????????????????????????????????????#" | | ????????????????????????????????????????????#???# | | ????????????????????????????????????????????????# | | ????????????????????????????????????????????????? | | ?????????????????????????????????????????????????? | | ?????????????????????????????????????????????????? | | ?????????????????????????????????????????????????? | | ?????????????????????????????????????????????????? | | ?????????????????????????????????????????????????? | | ?????????????????????????????????????????????????? | | ?????????????????????????????????????????????????? | | ?????????????????????????????????????????????????? | | ?????????????????????????????????????????????????? | | ?????????????????????????????????????????????????? | | ?????????????????????????????????????????????????? | +----------------------------------------------------+ Best States ------------- Heat Dissipation 25 Energy Generation 10 Energy Capacity 250 Matter Stores 300 Matter Capacity 300 Sight Range 16 Terrain Scan Range 14 Terrain Scan Density 10 Evasion (%) 50 Recoil Reduction 1 Item Schematics ----------------- None Robot Schematics ------------------ None Fabricated ------------ Nothing Repaired ---------- Nothing Alien Tech Used ----------------- None Achievements -------------- None Challenges ------------ None Game ------ Seed VisualZhirovLattice Manual? 0 Play Time 00:07:28 Cumulative 21.3 hours Start 2025.09.16 @ 17:51:20 End 2025.09.16 @ 17:58:04 Sessions 1 Manual Loads 0 Difficulty Rogue Special Mode None Game No. 25 Rogue 4 Adventurer 21 Explorer 0 Win Type - Total 1 Types 0/0/0/0/0/0/0/1/0/0 Lore% 45 Gallery% 31 Achievement% 37 Wizard Run 0 Options --------- Layout 1 ASCII 0 Keyboard 0 Movement Mouse Keybinds 0 Fullscreen 2 Font 24/Smallcaps Map View 50x35 Zoom Use 0% Tactical HUD 0 Map Filters NONE Filters NONE Steam 1 RUN: 4ebb30f5-edf8-410f-9459-2c9fffa724f7